{"text_format":"1","workbook":"xlsx","n_sheets":26,"sheets":["Orientação_Preenchimento","Local de Entrega","Centro de Custo","Beneficiario","Provisorio","Sumario","00","10","11","12","20","30","40","50","60","99","60R","60A","60V","60C","60CESTA","60NAT","60AXA","60AXR","60VRS","cpf"],"not_rendered":{"charts":0,"images":10,"macros":1,"external_links":0,"defined_names":1,"comments":1,"pivot_tables":0},"unopened":[],"bounds":{"document_bytes":16777216,"sheet_cells":100000,"rows_first":2000,"rows_last":500,"rows_between":2000,"halvings":0,"cell_chars":16384,"cell_head_chars":4096},"cells_cut":0,"cells_raw":0,"read":"whole","date_system":"1900"}

{"sheet":"Orientação_Preenchimento","index":0,"n_rows":79,"n_cols":3,"rows_kept":79,"cut":false,"hidden":false,"merged":[[43,1,43,2],[44,1,44,2],[70,1,70,2],[78,1,78,2],[58,1,58,2],[57,1,57,2],[73,1,73,2],[71,1,71,2],[72,1,72,2],[68,1,68,2],[50,1,50,2],[51,1,51,2],[55,1,55,2],[48,1,48,2],[6,1,6,2],[0,1,0,2],[1,1,1,2],[3,1,3,2],[4,1,4,2],[5,1,5,2],[13,1,13,2],[7,1,7,2],[8,1,8,2],[9,1,9,2],[10,1,10,2],[11,1,11,2],[12,1,12,2],[14,1,14,2],[15,1,15,2],[16,1,16,2],[17,1,17,2],[18,1,18,2],[38,1,38,2],[39,1,39,2],[19,1,19,2],[20,1,20,2],[22,1,23,2],[24,1,24,2],[25,1,25,2]]}
[null,"                   Caro Cliente,"]
[null,"                  Este gerador de pedido foi desenvolvido para auxiliá-lo no envio do arquivo TXT  caso a sua empresa não possua sistema para exportação dos                   \n                  dados dos beneficiários em formato TXT."]
[]
[null,"Atenção:"]
[null," - Não alterar este layout em nenhuma hipótese;"]
[null," - Os campos obrigatórios estão identificados com * (asterisco);"]
[null," - Não utilizar caracteres especiais no campo Nome Impressão Cartão (acentos, pontos, vírgula, º , ª , ,, , dentre outros);"]
[null," - Permitido um CNPJ/Código do Cliente por pedido. Caso possua mais de um CNPJ/Código do Cliente, faça pedidos separados."]
[null," - No pedido pode ser solicitado mais de um benefício desde de que sejam da mesma modalidade de pagamento: pré-pago ou pós-pago;"]
[null," - Se o pedido for apenas para gerar cartões preencha zero (0) no campo Valor do Crédito."]
[null,"Como enviar o arquivo"]
[null," - Após preencher todos os dados na planilha de pedidos, clique na aba Sumario;"]
[null," -  Digite o CNPJ/Código do Cliente, a Razão Social e a data de disponibilização dos créditos;"]
[null," - Clique em Exportar TXT para gerar o arquivo"]
[null," - Será gerado um arquivo TXT em uma pasta com o número do CNPJ/Código do Cliente;"]
[null," - Utilizar este arquivo para enviar o seu pedido;"]
[null," - No portal Cliente RH (área logada) clique na opção Pedido Arquivo;"]
[null," - Clique na aba Upload do Arquivo;"]
[null," - Selecione a modalidade de pagamento (pré-pago/pós-pago) e os produtos contidos no arquivo a ser importado;"]
[null," - Informe o valor total de cada produto e caso queira, pode informar um Identificador do Pedido; "]
[null," - Utilize o arquivo que foi gerado (pasta com o CNPJ/Código do Cliente) e clique em Importar."]
[]
[null,"Importante: antes de iniciar o preenchimento do pedido, leia com atenção as orientações a seguir:"]
[]
[null,"Local de Entrega: registro não obrigatório desde que já tenha sido cadastrado anteriormente."]
[null,"Havendo o registro do Local de Entrega preencher os campos obrigatórios."]
[null,"Código Local Entrega*","Código identificador do local de entrega criado pelo Cliente RH. \nSe o mesmo não estiver cadastrado no Portal Cliente RH, será criado. \nSe já existir o local será atualizado de acordo com o registro enviado.  \nTamanho máximo: 30 caracteres"]
[null,"Nome do Local de Entrega*","Descritivo para o local de entrega. \nTamanho máximo: 80 caracteres."]
[null,"Tipo Logradouro*","Rua, Avenida, Travessa etc.  \nTamanho máximo: 20 caracteres."]
[null,"Logradouro*","Nome da Rua, Avenida, Travessa etc. \nDescritivo para o local de entrega.\nTamanho máximo: 40 caracteres. "]
[null,"Número*","Informar apenas números. \nPara um número 4B, o \"B\" deve ser informado no complemento. \nTamanho máximo: 6 caracteres."]
[null,"Complemento","Tamanho máximo: 20 caracteres."]
[null,"Bairro*","Tamanho máximo: 30 caracteres."]
[null,"Cidade*","Tamanho máximo: 30 caracteres."]
[null,"UF*","Informar a sigla do Estado. \nTamanho máximo: 2 caracteres."]
[null,"CEP*","Não colocar traço, apenas números. \nColocar os \"zeros\" à esquerda.  \nTamanho máximo: 8 caracteres."]
[null,"Nome Interlocutor*","Responsável pelo recebimento dos cartões dos Beneficiários no local de entrega.\nTamanho máximo: 30 caracteres"]
[]
[null,"Local de Entrega-Associação de CNPJ: Registro não obrigatório."]
[null,"Havendo uma associação de CNPJ, preencher os campos obrigatórios."]
[null,"CNPJ Local Entrega*","CNPJ da empresa associada ao local de entrega. Caso o faturamento do contrato do RH estiver configurado como pagamento descentralizado, os beneficiários associados à esse CNPJ serão faturados separadamente."]
[null,"Nome Impressão Cartão*","O nome de impressão da empresa (linha 3 do cartão) dos cartões daquele local de entrega."]
[null,"Email alerta financeiro","Email utilizado para alerta financeiro (disponibilização de boleto) quando o faturamento for descentralizado."]
[null,"Local de Entrega-Responsável: Registro não obrigatório."]
[null,"Havendo um responsável pelo Local de Entrega, preencher os campos obrigatórios."]
[null,"Email do Interlocutor Principal (usuário portal)*","Email (usuário portal), esse usuário poderá desbloquear as AR's geradas neste pedido."]
[null,"Email Interlocutor 2 \n(usuário portal)","Email (usuário portal), esse usuário poderá desbloquear as AR's geradas neste pedido."]
[null,"Email Interlocutor 3 \n(usuário portal)","Email (usuário portal), esse usuário poderá desbloquear as AR's geradas neste pedido."]
[null,"* campo de preenchimento obrigatório"]
[]
[null,"Centro de Custo -  Registro não obrigatório"]
[null,"Havendo o registro preencher os campos obrigatórios."]
[null,"Código Centro de Custo*","Código identificador do centro de custo criado pelo Cliente RH. \nSe o mesmo não estiver registrado, será criado.\nSe já existir o centro de custo será atualizado de acordo com o registro enviado. \nTamanho máximo: 12 caracteres."]
[null,"Nome Centro de Custo*","Descritivo para o Centro de Custo.\nTamanho máximo: 80 caracteres."]
[null,"Nome Interlocutor","Responsável pelo recebimento dos cartões dos Beneficiários no centro de custo. \nSe não for informado, será considerado o interlocutor responsável cadastrado no local de entrega. \nTamanho máximo: 30 caracteres."]
[null,"* campo de preenchimento obrigatório"]
[]
[null,"Beneficiário -  Registro obrigatório"]
[null,"Preencher os campos obrigatórios."]
[null,"CPF Beneficiário*","Obrigatório para envio de benefícios a um Beneficiário nominal. \nInformar apenas números.\nSe o mesmo não estiver registrado, será criado. \nSe já existir o Beneficiário será atualizado de acordo com o registro enviado. \nTamanho máximo: 11 caracteres."]
[null,"Código Local Entrega*","O Código de local de entrega do Beneficiário.\nTamanho máximo: 30 caracteres."]
[null,"Código Centro de Custo","O Código de centro de custo do Beneficiário.\nTamanho máximo: 12 caracteres."]
[null,"Nome Completo*","Nome completo do beneficiário.\nTamanho máximo: 40 caracteres."]
[null,"Nome Impressão Cartão","Nome do beneficiário que será impresso no cartão (não utilizar caracteres especiais: acentos, pontos, vírgula, dentre outros)\nSe o mesmo estiver em branco, será utilizado o nome completo do beneficiário, podendo ser aplicadas regras de abreviação se ultrapassar 24 caracteres.\nTamanho máximo: 24 caracteres."]
[null,"Matrícula","Tamanho máximo: 10 caracteres."]
[null,"Data Nascimento*","Informar a data no formato dd/mm/aaaa "]
[null," Sexo","M – Masculino F – Feminino\nNo preenchimento deve ser informado apenas a letra: M (Masculino) ou F (Feminino)"]
[null,"Faixa Salarial","00: até um salário mínimo \n01: acima de um salário mínimo e até dois salários mínimos \n02: acima de dois salários mínimos e até três salários mínimos \n03: acima de três salários mínimos e até quatro salários mínimos \n04: acima de quatro salários mínimos e até cinco salários mínimos\n05: acima de cinco salários mínimos e até seis salários mínimos\n06: acima de seis salários mínimos e até oito salários mínimos\n07: acima de oito salários mínimos e até dez salários mínimos\n08: acima de dez salários mínimos e até doze salários mínimos\n09: acima de doze salários mínimos"]
[null,"* campo de preenchimento obrigatório"]
[]
[null,"Provisório -  Registro não obrigatório"]
[null,"Havendo o registro preencher os campos obrigatórios."]
[null," - Para cada produto é obrigatório que o campo Identificação seja diferente;"]
[null," - Havendo produtos diferentes (Exemplo: VR Refeição e VR Alimentação) solicite um produto em cada linha."]
[null,"Código Local Entrega*","O Código de local de entrega do Provisório.\nTamanho máximo: 30 caracteres."]
[null,"Código Centro de Custo","O Código de centro de custo do Provisório.\nTamanho máximo: 12 caracteres."]
[null,"Identificação*","Nome de Identificação, obrigatório para envio de benefícios a um cartão provisório. \nTamanho máximo: 40 caracteres."]
[null,"Nome Impressão Cartão","Nome do Provisório que será impresso no cartão (não utilizar caracteres especiais: acentos, pontos, vírgula, dentre outros)\nÉ opcional para os cartões provisórios.\nTamanho máximo: 24 caracteres."]
[null,"* campo de preenchimento obrigatório"]

{"sheet":"Local de Entrega","index":1,"n_rows":9,"n_cols":17,"rows_kept":9,"cut":false,"hidden":false,"merged":[]}
["Código local entrega*\nmáximo 30 caracteres","Nome local entrega*\nmáximo 80 caracteres","Tipo Logradouro*\nmáximo 20 caracteres","Logradouro*\nmáximo 40 caracteres","Número*\nmáx. 6 caracteres","Complemento\nmáximo 20 caracteres","Bairro*\nmáximo 30 caracteres","Cidade*\nmáximo 30 caracteres","UF*\nmáx. 2 caracteres","CEP*\nmáx. 8 caracteres","Nome Interlocutor*\nmáximo 30 caracteres","CNPJ do Local de Entrega\n14 caracteres","Nome Impressão Cartão \n24 caracteres","E-Mail Alerta Financeiro\n70 caracteres","Email Responsável \nDesbloqueio de ARs \n(usuário portal - principal)\n60 caracteres","Email Responsável \nDesbloqueio de ARs \n(usuário portal - 2)\n60 caracteres","Email Responsável \nDesbloqueio de ARs \n(usuário portal - 3)\n60 caracteres"]
["01","ECOL SERVIÇOS TERCEIRIZADOS ","RUA ","CAETES ","84","CASA","VILA MATARAZZO","LONDRINA","PR","86026300","LUCAS"]
["02","ECOL FILIAL CURITIBA","RUA ","CARLOS PRADI","502","LOJA 01","JARDIM DAS AMERICAS","CURITIBA","PR","81530180","CILMARA"]
["03","INSTITUTO FEDERAL DO RIO GRANDE DO SUIL CAMPUS PORTO ALEGRE","RUA ","CORONEL VICENTE","281",null,"CENTRO HISTORICO","PORTO ALEGRE","RS","90030041","MARIANA ANJOS VIEIRA"]
["04","JOAQUIM FRANCISCO DE OLIVEIRA JUNIOR","RUA ","JACARANDA","21",null,"PLANTA BOSQUE CENTENARIO","PIRAQUARA","PR","83311020","JOAQUIM FRANCISCO DE OLIVEIRA JUNIOR"]
["05","CLAYTON CONTE","RODOVIA","RUA EDGAR SCHIMMELPEENG","640","BR 277 KM727","IMOVEL ACARAIZINHO ","FOZ DO IGUACU","PR","85863640","CLAYTON CONTE"]
["06","MULTILOG EMPRES DE LOGISTICA PORTO SECO","AVENIDA","BR 290 KM 17","0","SEM NUMERO","DISTRITO RODOVIARIO","URUGUAIANA ","RS","97513970","MARCOS VINICIUS "]
["07","JOSE REINALDO  ECOL","AVENIDA","DAS ARAUCARIAS","5899",null,"CHAPADA ","ARAUCARIA  ","PR","83707752","JOSE REINALDO  ECOL"]
["08","SILVANA RAQUEL MOTA RIBEIRO  ECOL","RUA ","PASCOAL APOSTOLO PITSICA","487","ED LUIZ ELIAS DAUX","AGRONOMICA","FLORIANOPOLIS","SC","88025255","SILVANA RAQUEL MOTA RIBEIRO  ECOL"]

{"sheet":"Centro de Custo","index":2,"n_rows":93,"n_cols":3,"rows_kept":93,"cut":false,"hidden":false,"merged":[]}
["Código centro custo*\nmáximo 12 caracteres","Nome centro custo*\nmáximo 80 caracteres","Nome Interlocutor\nmáximo 30 caracteres"]
["01","ECOL MATRIZ "]
["02","ECOL FILIAL "]
["03","ATT"]
["04","BAYER "]
["05","BOULEVARD "]
["06","CONDOMINIO MAISON MONET "]
["07","CONFIDENCE "]
["08","DAVITA ROLANDIA "]
["09","DAVITA LONDRINA "]
["10 ","DAVITA ARAPONGAS "]
["11","ECOCATARATAS BALANÇA FIXA "]
["12","ECOCATARATAS BIODIVERSIDADE "]
["13","ECOCATARATAS PEDAGIO 1 "]
["14","ECOCATARATAS PEDAGIO 02"]
["15","ECOCATARATAS PEDAGIO 03 "]
["16","ECOCATARATAS PEDAGIO 04"]
["17","ECOCATARATAS PEDAGIO 05"]
["18","ECOCATARATAS PORTÃO MST "]
["19","ECOCATARATAS SAU1 "]
["20","ECOCATARATAS SAU2"]
["21","ECOCATARATAS SAU3"]
["22","ECOCATARATAS SAU4"]
["23","ECOCATARATAS SAU6"]
["24","ECOCATARATAS SAU7"]
["25","ECOCATARATAS SEDE ADMINISTRATIVA "]
["26","ECOVIA P02"]
["27","ECOVIA P03"]
["28","ECOVIA SAU1"]
["29","ECOVIA SAU2"]
["30","ECOVIA SAU3"]
["31","ECOVIA SEDE ADMINISTRATIVA"]
["32","EMBRACON "]
["33","EQUIPE VOLANTE "]
["34","FMC "]
["35","HOFTLON"]
["36","IDALINA"]
["37","IMCOPA ARAUCÁRIA "]
["38","IMCOPA CAMBÉ "]
["39","ITAMARATY "]
["40","LIVRARIAS CURITIBA "]
["41","LOG LONDRINA "]
["42","LUFT"]
["43","ORTODONTIC CENTER "]
["44","MRV ENGENHARIA "]
["45","MULTILOG FOZ DO IGUAÇU "]
["46","MULTILOG URUGUAIANA "]
["47","NISSAN "]
["48","ODONTOLOGIA ROMANINI "]
["49","PREMIER PET "]
["50","SELMI"]
["51","SHIZEN "]
["52","VICSA "]
["53","VALE VERDE "]
["54","LIVRARIAS CATARINENSE"]
["55","SERILON"]
["56","ADM DO BRASIL"]
["57","CONDOMINIO LINDOIA"]
["58","CONDOMINIO ECO RESORT"]
["59","LEROY MERLIN"]
["60","CAMARA DE URUGUAIANA"]
["61","NACIONAL GAS"]
["62","TEMDA ESTOFADOS"]
["63","BANCO DAYCOVAL"]
["64","SMART FIT"]
["65","HISTOCOM"]
["66","CONDOMINIO PRINCE"]
["67","MRV LOJA BRASIL MARINGA"]
["68","CAMARA SÃO JERONIMO DA SERRA"]
["69","PLAENGE"]
["70","ELO COMPONENTES"]
["71","RONDOPAR"]
["72","CONDOMINIO CARAGUA"]
["73","CEFIL"]
["74","ECOCATARATAS BALANÇA MOVEL"]
["75","FUNDAÇÃO CULTURAL DO FOZ DO IGUAÇU"]
["76","CARGO SHOP"]
["77","INDREL"]
["78","VANGUARD HOME"]
["79","ALPHA SONIC"]
["80","YERBALATINA"]
["81","CLINICARDIO"]
["82","MPF"]
["83","AGU"]
["84","PARANA PREVIDENCIA"]
["85","IFRS"]
["86","BELAGRICOLA"]
["87","CTD- CAMPANHA DE TECNOLOGIA E DESENCOLVIMENTO S.A"]
["88","MULTIPLIQUE"]
["89","VIVERT - CONSTRUTORA PRESTES"]
["90","SONOCO"]
["91","ASAS - CATUAI"]
["92","\tSIMBRIOSE INDUSTRIA E COMERCIOSIMBIOSE"]

{"sheet":"Beneficiario","index":3,"n_rows":2,"n_cols":18,"rows_kept":2,"cut":false,"hidden":false,"merged":[]}
["CPF*\nmáximo 11 caracteres","Código local entrega*\nmáximo 30 caracteres","Código centro de custo\nmáximo 12 caracteres","Matrícula\nmáx. 10 caracteres","Nome completo*\nmáximo 40 caracteres","Nome Impressão Cartão\nmáximo 24 caracteres","Data Nascimento*\n(DDMMAAAA)","Sexo\n(M/F)","Faixa Salarial","VR Refeição\nValor do crédito","VR Alimentação\nValor do crédito","VR Auto\nValor do crédito","VR Cultura\nValor do crédito","VR Alimentação Cesta\nValor do crédito","VR Alimentação\nNatal\nValor do crédito","VR Alimentação Auxílio\nValor do crédito","VR Refeição Auxílio\nValor do crédito","VR Saúde\nValor do crédito"]
["00021880662","01","66","1835X","SUELY FERREIRA DA SILVA",null,"08061975","F","01",null,238.94]

{"sheet":"Provisorio","index":4,"n_rows":1,"n_cols":11,"rows_kept":1,"cut":false,"hidden":false,"merged":[]}
["Código local entrega*\nmáximo 30 caracteres","Código centro de custo\nmáximo 12 caracteres","Identificação*\nmáximo 40 caracteres","Nome Impressão Cartão\nmáximo 24 caracteres","VR Refeição\nValor do crédito","VR Alimentação\nValor do crédito","VR Auto\nValor do crédito","VR Alimentação Cesta\nValor do crédito","VR Alimentação Natal\nValor do crédito","VR Alimentação Auxílio\nValor do crédito","VR Refeição Auxílio\nValor do crédito"]

{"sheet":"Sumario","index":5,"n_rows":8,"n_cols":27,"rows_kept":8,"cut":false,"hidden":false,"merged":[[1,2,1,7],[5,0,5,2],[6,0,6,2],[7,0,7,2]]}
["CNPJ / Código do Cliente:",null,"20596423000123"]
["Razão Social:",null,"DGX TERCEIRIZACAO EIRELI "]
[null,null,null,null,null,null,null,null,null,{"$f":"IF(AND(G2>0,G1048576<>J2,G1048576<>J1,G1048576<>J1048576),G1048576,\"\")","v":""},null,null,null,null,null,null,null,null,null,null,null,null,null,null,null,null,{"$f":"IF(AND(X2>0,X1048576<>AA2,X1048576<>AA1,X1048576<>AA1048576),X1048576,\"\")","v":""}]
[null,null,null,{"$f":"IF(D7>0,1,0)","v":0},{"$f":"IF(E7>0,1,0)","v":1},0,0,0,0,0,0,{"$f":"IF(L7>0,1,0)","v":0}]
[null,null,null,"VR Refeição","VR Alimentação","VR Auto","VR Cultura","VR Cesta","VR Natal","VR Auxílio Alimentação","VR Auxílio Refeição","VR Saúde"]
["Data de disponibilização:   ",null,null,null,"07072023"]
["Quantidade Total de Beneficiário:   ",null,null,{"$f":"COUNTIF(Beneficiario!J:J,\">=0\")+COUNTIF(Provisorio!E:E,\">=0\")","v":0},{"$f":"COUNTIF(Beneficiario!K:K,\">=0\")+COUNTIF(Provisorio!F:F,\">=0\")","v":1},{"$f":"COUNTIF(Beneficiario!L:L,\">=0\")+COUNTIF(Provisorio!G:G,\">=0\")","v":0},{"$f":"COUNTIF(Beneficiario!M:M,\">=0\")","v":0},{"$f":"COUNTIF(Beneficiario!N:N,\">=0\")+COUNTIF(Provisorio!H:H,\">=0\")","v":0},{"$f":"COUNTIF(Beneficiario!O:O,\">=0\")+COUNTIF(Provisorio!I:I,\">=0\")","v":0},{"$f":"COUNTIF(Beneficiario!P:P,\">=0\")+COUNTIF(Provisorio!J:J,\">=0\")","v":0},{"$f":"COUNTIF(Beneficiario!Q:Q,\">=0\")+COUNTIF(Provisorio!K:K,\">=0\")","v":0},{"$f":"COUNTIF(Beneficiario!R:R,\">=0\")","v":0}]
["Valor Total:   ",null,null,{"$f":"SUM(Beneficiario!J:J)+SUM(Provisorio!E:E)","v":0},{"$f":"SUM(Beneficiario!K:K)+SUM(Provisorio!F:F)","v":238.94},{"$f":"SUM(Beneficiario!L:L)+SUM(Provisorio!G:G)","v":0},{"$f":"SUM(Beneficiario!M:M)","v":0},{"$f":"SUM(Beneficiario!N:N)+SUM(Provisorio!H:H)","v":0},{"$f":"SUM(Beneficiario!O:O)+SUM(Provisorio!I:I)","v":0},{"$f":"SUM(Beneficiario!P:P)+SUM(Provisorio!J:J)","v":0},{"$f":"SUM(Beneficiario!Q:Q)+SUM(Provisorio!K:K)","v":0},{"$f":"SUM(Beneficiario!R:R)","v":0}]

{"sheet":"00","index":6,"n_rows":0,"n_cols":0,"rows_kept":0,"cut":false,"hidden":true,"merged":[]}

{"sheet":"10","index":7,"n_rows":0,"n_cols":0,"rows_kept":0,"cut":false,"hidden":true,"merged":[]}

{"sheet":"11","index":8,"n_rows":0,"n_cols":0,"rows_kept":0,"cut":false,"hidden":true,"merged":[]}

{"sheet":"12","index":9,"n_rows":0,"n_cols":0,"rows_kept":0,"cut":false,"hidden":true,"merged":[]}

{"sheet":"20","index":10,"n_rows":0,"n_cols":0,"rows_kept":0,"cut":false,"hidden":true,"merged":[]}

{"sheet":"30","index":11,"n_rows":0,"n_cols":0,"rows_kept":0,"cut":false,"hidden":true,"merged":[]}

{"sheet":"40","index":12,"n_rows":0,"n_cols":0,"rows_kept":0,"cut":false,"hidden":true,"merged":[]}

{"sheet":"50","index":13,"n_rows":0,"n_cols":0,"rows_kept":0,"cut":false,"hidden":true,"merged":[]}

{"sheet":"60","index":14,"n_rows":0,"n_cols":0,"rows_kept":0,"cut":false,"hidden":true,"merged":[]}

{"sheet":"99","index":15,"n_rows":0,"n_cols":0,"rows_kept":0,"cut":false,"hidden":true,"merged":[]}

{"sheet":"60R","index":16,"n_rows":0,"n_cols":0,"rows_kept":0,"cut":false,"hidden":true,"merged":[]}

{"sheet":"60A","index":17,"n_rows":0,"n_cols":0,"rows_kept":0,"cut":false,"hidden":true,"merged":[]}

{"sheet":"60V","index":18,"n_rows":0,"n_cols":0,"rows_kept":0,"cut":false,"hidden":true,"merged":[]}

{"sheet":"60C","index":19,"n_rows":0,"n_cols":0,"rows_kept":0,"cut":false,"hidden":true,"merged":[]}

{"sheet":"60CESTA","index":20,"n_rows":0,"n_cols":0,"rows_kept":0,"cut":false,"hidden":true,"merged":[]}

{"sheet":"60NAT","index":21,"n_rows":0,"n_cols":0,"rows_kept":0,"cut":false,"hidden":true,"merged":[]}

{"sheet":"60AXA","index":22,"n_rows":0,"n_cols":0,"rows_kept":0,"cut":false,"hidden":true,"merged":[]}

{"sheet":"60AXR","index":23,"n_rows":0,"n_cols":0,"rows_kept":0,"cut":false,"hidden":true,"merged":[]}

{"sheet":"60VRS","index":24,"n_rows":0,"n_cols":0,"rows_kept":0,"cut":false,"hidden":true,"merged":[]}

{"sheet":"cpf","index":25,"n_rows":0,"n_cols":0,"rows_kept":0,"cut":false,"hidden":true,"merged":[]}